fUSD/lending_fUSD_20240704
["ID","MTS","AMOUNT","RATE_DAILY","PERIOD"]
[331101349,1720081834126,-773.4208,0.00013899,2]
[331101350,1720081834136,-155.40838831,0.00013899,2]
[331101351,1720081834146,-165.62984358,0.00013899,2]
[331101352,1720081834305,-180.88800982,0.00013899,2]
[331101353,1720081834315,-500.0,0.000139,2]
[331101354,1720081834326,-9902.86905576,0.000139,2]
[331101355,1720081834338,-500.0,0.000139,2]
[331101359,1720081838212,-445.32427405,0.00013516,2]
[331101360,1720081838225,-742.7708749,0.000139,2]
[331101361,1720081838237,-4985.71833772,0.000139,2]
[331101362,1720081838249,-18027.78907,0.000139,2]
[331101369,1720081839095,-4070.16904226,0.000139,2]
[331101371,1720081839108,-61770.68361936,0.000139,2]
[331101373,1720081839118,-170673.31638064,0.000139,2]
[331101375,1720081839131,-611.8,0.000139,2]
[331101376,1720081839143,-735.90999,0.000139,2]
[331101377,1720081839156,-704.92261432,0.000139,2]
[331101378,1720081839169,-2332.32978955,0.000139,2]
[331101379,1720081839181,-713.07366266,0.000139,2]
[331101380,1720081839193,-7592.06373416,0.000139,2]
[331101381,1720081839206,-893.59727248,0.000139,2]
[331101383,1720081839219,-347.96815075,0.000139,2]
[331101387,1720081839266,-404.4999995,0.000139,2]
[331101389,1720081839279,-3325.2271754,0.000139,2]
[331101391,1720081839291,-902.63081299,0.000139,2]
[331101393,1720081839303,-576.87446552,0.000139,2]
[331101395,1720081839326,-55185.78595203,0.000139,2]
[331101396,1720081839336,-224.77092236,0.000139,2]
[331101397,1720081839348,-11339.35342945,0.000139,2]
[331101398,1720081839359,-2700.0,0.000139,5]
[331101399,1720081839370,-826.01696802,0.000139,2]
[331101400,1720081839381,-5928.08545028,0.000139,2]
[331101401,1720081839391,-234.32781888,0.000139,2]
[331101402,1720081839402,-608.67,0.00013973,3]
[331101403,1720081839413,-22499.2342633,0.00013989,2]
[331101404,1720081839424,-648.70781018,0.00013989,2]
[331101405,1720081839435,-217.96087048,0.00013989,2]
[331101406,1720081839446,-1547.39498095,0.00013999,2]
[331101407,1720081839457,-1547.39498095,0.00013999,2]
[331101409,1720081839469,-150.0,0.00013999,2]
[331101410,1720081839483,-150.0,0.00013999,7]
[331101412,1720081839495,-150.0,0.00013999,7]
[331101414,1720081839505,-539696.02445477,0.00013999,2]
[331101417,1720081839519,-159.63593278,0.00013999,2]
[331101418,1720081839529,-157.139942,0.00013999,2]
[331101420,1720081839540,-163.64202156,0.00013999,2]
[331101422,1720081839551,-788271.32540693,0.00014,2]
[331101425,1720081839572,-771.65526251,0.00014,2]
[331101428,1720081839585,-96058.76603331,0.00014,2]
[331101430,1720081839598,-15181.0624683,0.00014,2]
[331101433,1720081839623,-31312.52,0.00014,2]
[331101435,1720081839635,-14574.25997623,0.00014,2]
[331101525,1720081840424,-1819.99999776,0.00014,2]
[331101528,1720081840436,-15993.81369969,0.00014,2]
[331101530,1720081840449,-451.29277429,0.00014,2]
[331101532,1720081840468,-723.4200897,0.00014,2]
[331101538,1720081840519,-1050.51565051,0.00014,2]
[331101540,1720081840531,-4130.24694756,0.00014,2]
[331101542,1720081840544,-254.82753692,0.00014,2]
[331101545,1720081840560,-1265.19648431,0.00014,2]
[331101547,1720081840578,-4758.8714046,0.00014,2]
[331101549,1720081840591,-197248.86786876,0.00014,2]
[331101551,1720081840603,-530.86535505,0.00014,2]
[331101554,1720081840616,-7535.0654022,0.00014,2]
[331101555,1720081840629,-453.8784,0.00014,2]
[331101556,1720081840679,-4406.46887546,0.00014,2]
[331101557,1720081840768,-192504.34732084,0.00014,2]
[331101558,1720081840782,-659.94979241,0.00014,2]
[331101564,1720081840864,-53826.72890797,0.00014,2]
[331101566,1720081840877,-1583.2356119,0.00014,2]
[331101568,1720081840890,-922.8938064,0.00014,2]
[331101571,1720081840903,-363.6,0.00014,2]
[331101573,1720081840915,-7347.55812948,0.00014,2]
[331101576,1720081840936,-62484.29335375,0.00014,2]
[331101578,1720081840948,-1107.05229675,0.00014,2]
[331101580,1720081840963,-362.35711128,0.00014,2]
[331101584,1720081840991,-1035.81827002,0.00014,2]
[331101834,1720081843416,-235.54494929,0.00013574,2]
[331101835,1720081843427,-27979.95646681,0.000139,2]
[331101836,1720081843437,-445739.43618221,0.00014,2]
[331101837,1720081843450,-307.74597549,0.00014,2]
[331101838,1720081843469,-5087.95758776,0.00014,2]
[331101839,1720081843481,-17721.86150916,0.00014,2]
[331101840,1720081843499,-372.51975567,0.00014,2]
[331101841,1720081843511,-450.180002,0.00014,2]
[331101842,1720081843523,-281.326473,0.00014,2]
[331101970,1720081844768,-3576.31254999,0.00014,2]
[331101972,1720081844780,-40370.80844279,0.00014,2]
[331101974,1720081844791,-383.0521017,0.00014,2]
[331101976,1720081844802,-5060.49712032,0.00014,2]
[331101978,1720081844813,-600.64996105,0.00014,2]
[331101981,1720081844824,-16736.653565,0.00014,2]
[331101983,1720081844835,-29338.059,0.00014,2]
[331101985,1720081844846,-9845.86782378,0.00014,2]
[331101987,1720081844857,-460.32635449,0.00014,2]
[331101991,1720081844883,-56992.81505528,0.00014,2]
[331101994,1720081844897,-10475.19883426,0.00014,2]
[331101997,1720081844916,-341.80199623,0.00014,2]
[331101999,1720081844927,-1234.99446492,0.00014,2]
[331102001,1720081844938,-2024.70883793,0.00014,2]
[331102003,1720081844949,-3765.60423711,0.00014,2]
[331102005,1720081844961,-615.28590621,0.00014,2]
[331102007,1720081844973,-35632.47706054,0.00014,2]
[331102010,1720081844984,-1468.79524653,0.00014,2]
[331102013,1720081845006,-1017.6830018,0.00014,2]
[331102015,1720081845017,-400.36535376,0.00014,2]
[331102018,1720081845032,-446.51173508,0.00014,2]
[331102042,1720081845239,-6639.9069365,0.00014,2]
[331102044,1720081845252,-3985.82434608,0.00014,2]
[331102047,1720081845275,-590.6363332,0.00014,2]
[331102050,1720081845291,-1007.06053773,0.00014,2]
[331102053,1720081845306,-281.326473,0.00014,2]
[331102056,1720081845326,-528.12068222,0.00014,2]
[331102058,1720081845336,-27682.3511449,0.00014,2]
[331102247,1720081847901,-98802.12649784,0.00014,2]
[331102250,1720081847912,-581.7,0.00014,2]
[331102258,1720081848052,-216.35910063,0.00013574,2]
[331102259,1720081848062,-1982.26337029,0.00014,2]
[331102260,1720081848074,-288.52122528,0.00014,2]
[331102261,1720081848085,-624.58643076,0.00014,2]
[331102262,1720081848097,-1453.225,0.00014,2]
[331102263,1720081857217,155.0,0.00013574,60]
[331102264,1720081895159,155.0,0.00016969,60]
[331102266,1720081942955,628.33024769,0.00011199,2]
[331102268,1720081962823,21688.97086899,0.00011199,2]
[331102269,1720081977906,15473.66372351,0.00011199,2]
[331102270,1720082004770,3026.21301367,0.00011199,2]
[331102271,1720082024243,3236.01137135,0.00011199,2]
[331102272,1720082026714,9240.07117437,0.00011199,2]
[331102276,1720082065524,2380.38250857,0.00011199,2]
[331102278,1720082103275,1007.49257294,0.00011199,2]
[331102279,1720082115909,1270.99037904,0.00011199,2]
[331102280,1720082135811,1133.60989333,0.00011199,2]
[331102281,1720082147053,1282.61371139,0.00011199,2]
[331102282,1720082147932,754.06054418,0.00011199,2]
[331102283,1720082149222,140123.63521085,0.00011199,2]
[331102284,1720082183723,719.40038681,0.00011199,2]
[331102286,1720082204782,500.0,0.00011199,2]
[331102287,1720082205163,151.0,0.00011199,2]
[331102288,1720082205606,500.0,0.00011199,2]
[331102289,1720082205899,151.0,0.00011199,2]
[331102290,1720082205942,500.0,0.00011199,2]
[331102291,1720082206303,500.0,0.00011199,2]
[331102292,1720082206392,151.0,0.00011199,2]
[331102293,1720082206650,500.0,0.00011199,2]
[331102294,1720082206759,151.0,0.00011199,2]
[331102295,1720082207687,151.0,0.00011199,2]
[331102296,1720082207802,500.0,0.00011199,2]
[331102297,1720082208012,151.0,0.00011199,2]
[331102298,1720082208181,500.0,0.00011199,2]
[331102299,1720082208350,197.0,0.00011199,2]
[331102300,1720082208520,500.0,0.00011199,2]
[331102301,1720082209040,643.0,0.00011199,2]
[331102302,1720082216079,258.88603077,0.00011199,2]
[331102303,1720082218638,474.74245113,0.00011199,2]
[331102304,1720082219117,500.0,0.00011199,2]
[331102305,1720082219470,500.0,0.00011199,2]
[331102306,1720082219668,193.99040237,0.00011199,2]
[331102307,1720082219865,500.0,0.00011199,2]
[331102308,1720082220490,500.0,0.00011199,2]
[331102309,1720082220771,500.0,0.00011199,2]
[331102310,1720082221106,500.0,0.00011199,2]
[331102311,1720082221666,500.0,0.00011199,2]
[331102312,1720082222039,500.0,0.00011199,2]
[331102313,1720082222561,500.0,0.00011199,2]
[331102314,1720082222790,500.0,0.00011199,2]
[331102315,1720082223125,500.0,0.00011199,2]
[331102317,1720082224086,500.0,0.00011199,2]
[331102318,1720082224510,500.0,0.00011199,2]
[331102319,1720082225466,500.0,0.00011199,2]
[331102320,1720082225816,500.0,0.00011199,2]
[331102321,1720082226199,500.0,0.00011199,2]
[331102322,1720082226552,500.0,0.00011199,2]
[331102323,1720082226998,500.0,0.00011199,2]
[331102324,1720082227388,500.0,0.00011199,2]
[331102325,1720082227735,500.0,0.00011199,2]
[331102326,1720082228059,500.0,0.00011199,2]
[331102327,1720082228437,500.0,0.00011199,2]
[331102328,1720082228783,500.0,0.00011199,2]
[331102329,1720082229138,500.0,0.00011199,2]
[331102330,1720082229487,500.0,0.00011199,2]
[331102331,1720082229816,500.0,0.00011199,2]
[331102332,1720082230197,500.0,0.00011199,2]
[331102333,1720082230562,500.0,0.00011199,2]
[331102334,1720082230907,500.0,0.00011199,2]
[331102335,1720082230975,518.04242089,0.00011199,2]
[331102336,1720082231277,500.0,0.00011199,2]
[331102337,1720082231643,500.0,0.00011199,2]
[331102338,1720082231980,500.0,0.00011199,2]
[331102339,1720082232337,500.0,0.00011199,2]
[331102340,1720082233193,155.37220971,0.00011199,2]
[331102341,1720082233225,500.0,0.00011199,2]
[331102342,1720082233284,500.0,0.00011199,2]
[331102343,1720082233482,500.0,0.00011199,2]
[331102344,1720082233827,500.0,0.00011199,2]
[331102345,1720082234163,500.0,0.00011199,2]
[331102346,1720082234551,500.0,0.00011199,2]
[331102347,1720082234896,500.0,0.00011199,2]
[331102348,1720082235351,500.0,0.00011199,2]
[331102349,1720082235711,500.0,0.00011199,2]
[331102350,1720082236048,500.0,0.00011199,2]
[331102351,1720082236436,500.0,0.00011199,2]
[331102352,1720082236783,500.0,0.00011199,2]
[331102353,1720082237142,500.0,0.00011199,2]
[331102354,1720082237503,500.0,0.00011199,2]
[331102355,1720082237856,500.0,0.00011199,2]
[331102356,1720082238215,500.0,0.00011199,2]
[331102357,1720082238586,500.0,0.00011199,2]
[331102358,1720082238961,500.0,0.00011199,2]
[331102359,1720082239019,155.1692431,0.00011199,2]
[331102360,1720082239188,296.94055061,0.00011199,2]
[331102361,1720082239300,500.0,0.00011199,2]
[331102362,1720082239652,500.0,0.00011199,2]
[331102363,1720082240064,500.0,0.00011199,2]
[331102364,1720082240427,500.0,0.00011199,2]
[331102365,1720082240769,500.0,0.00011199,2]
[331102366,1720082241687,500.0,0.00011199,2]
[331102367,1720082242028,500.0,0.00011199,2]
[331102368,1720082242391,500.0,0.00011199,2]
[331102370,1720082242952,500.0,0.00011199,2]
[331102371,1720082243113,590.0,0.00011199,2]
[331102372,1720082244829,628.24837608,0.00011199,2]
[331102373,1720082251954,528.78078765,0.00011199,2]
[331102374,1720082253793,155.0,0.00011199,2]
[331102375,1720082257646,174.21721352,0.00011199,2]
[331102376,1720082262767,155.4066957,0.00011199,2]
[331102377,1720082262969,155.21916288,0.00011199,2]
[331102378,1720082268079,5171.20775585,0.00011199,2]
[331102379,1720082270722,891.01341507,0.00011199,2]
[331102380,1720082271929,155.0,0.00011199,2]
[331102381,1720082286968,193.32292639,0.00011199,2]
[331102383,1720082300433,430.9664964,0.00011199,2]
[331102384,1720082306037,206.82389427,0.00011199,2]
[331102387,1720082354093,-288.0,0.00011967,2]
[331102388,1720082354124,-300.0,0.00011967,2]
[331102389,1720082354152,-23900.0,0.00011968,2]
[331102390,1720082354181,-500.0,0.00011988,2]
[331102392,1720082368605,-5051.7003,0.00012173,2]
[331102393,1720082368638,-2610.27,0.00012236,2]
[331102394,1720082368742,169.02,0.00012009,2]
[331102395,1720082386366,-307.87,0.00012245,2]
[331102396,1720082386396,-155.0,0.00012273,2]
[331102397,1720082386424,-30852.60020828,0.00012278,2]
[331102398,1720082386458,-307.87,0.00012278,2]
[331102400,1720082396665,547.1078226,0.00011199,2]
[331102402,1720082433456,480.71348631,0.00011199,2]
[331102404,1720082449807,-300.0,0.00012045,2]
[331102406,1720082496911,263.93978855,0.00011199,2]
[331102407,1720082505785,155.0,0.00011199,2]
[331102408,1720082507334,155.74076896,0.00011199,2]
[331102409,1720082548310,2126.24560633,0.00011945,2]
[331102410,1720082551310,150.5,0.0001399,30]
[331102411,1720082551351,152.83,0.0001399,30]
[331102412,1720082551665,150.5,0.0001398,30]
[331102413,1720082552170,150.5,0.0001397,30]
[331102414,1720082562590,5386.28050123,0.00011199,2]
[331102415,1720082562900,959.86585098,0.00011199,2]
[331102416,1720082570178,348.63446344,0.00011199,2]
[331102417,1720082577291,1600.0,0.00011199,2]
[331102418,1720082580084,5386.28050123,0.00011199,2]
[331102419,1720082603902,492.0294394,0.00011199,2]
[331102420,1720082611220,303.74358298,0.00011199,2]
[331102421,1720082613463,819.63,0.00010217,2]
[331102422,1720082665906,959.86585098,0.00010217,2]
[331102423,1720082668375,527.94916232,0.00011199,2]
[331102424,1720082671118,150.5,0.0001399,30]
[331102425,1720082671234,150.5,0.0001398,30]
[331102426,1720082671624,150.5,0.0001397,30]
[331102427,1720082672631,155.0,0.00011199,2]
[331102428,1720082672670,231.33,0.0001399,30]
[331102429,1720082685188,348.63446344,0.00010217,2]
[331102430,1720082690908,8190.07117437,0.00011199,2]
[331102431,1720082698591,256.85023054,0.00011936,2]
[331102432,1720082703893,256.85023052,0.00011941,2]
[331102433,1720082705536,350.55642648,0.00011199,2]
[331102434,1720082708705,256.85023052,0.00011945,2]
[331102437,1720082744905,959.86585098,0.00011945,2]
[331102438,1720082747353,2165.46244465,0.00011199,2]
[331102439,1720082762687,155.12291075,0.00011199,2]
[331102440,1720082763926,2161.67016372,0.00011199,2]
[331102441,1720082773088,235.5502268,0.00011199,2]
[331102444,1720082801186,313.01323987,0.00011945,2]
[331102445,1720082803123,219.40639316,0.00011945,2]
[331102446,1720082804278,218.16420677,0.00011199,2]
[331102447,1720082831176,1071.01746331,0.00011199,2]
[331102455,1720082879249,227.14852012,0.00011199,2]
[331102456,1720082881381,155.51577953,0.00011199,2]
[331102457,1720082900352,155.66263609,0.00011199,2]
[331102458,1720082906008,9783.92399479,0.00011199,2]
[331102459,1720082911721,202.08029588,0.00011199,2]
[331102460,1720082928248,163.67705412,0.00011199,2]
[331102461,1720082930744,432.97868122,0.00011199,2]
[331102462,1720082943412,-186.87,0.00012036,2]
[331102463,1720082943442,-250.0,0.00012036,2]
[331102464,1720082943472,-227.11,0.00012045,2]
[331102465,1720082943501,-300.0,0.00012055,2]
[331102466,1720082943531,-3979.7604356,0.00012056,2]
[331102467,1720082943693,-4943.7404356,0.00012056,2]
[331102468,1720082943742,-434.56015891,0.00012056,2]
[331102469,1720082946143,2375.00109298,0.00011199,2]
[331102471,1720082968445,-5150.1812562,0.00012056,2]
[331102472,1720082968622,-5150.1812562,0.00012056,2]
[331102473,1720082968665,-3094.69496095,0.00012056,2]
[331102474,1720082993351,-1146.88149654,0.00012056,2]
[331102475,1720082993380,-250.0,0.00012056,2]
[331102476,1720082993410,-307.83996578,0.00012059,2]
[331102477,1720083025853,209.7986185,0.00011199,2]
[331102489,1720083032427,150.5,0.0001399,30]
[331102493,1720083032579,-192.16003422,0.00012059,2]
[331102494,1720083032589,-746.13,0.00012078,2]
[331102495,1720083032598,-317.11996578,0.00012084,2]
[331102496,1720083032610,-1399.88466407,0.00012084,2]
[331102497,1720083032620,-500.0,0.00012084,2]
[331102498,1720083032630,-1428.44033377,0.00012092,2]
[331102503,1720083032803,-717.31197613,0.00012092,2]
[331102504,1720083032815,-137.9176901,0.00012092,2]
[331102505,1720083032824,-341.51,0.00012117,2]
[331102506,1720083032836,-277.08,0.00012176,2]
[331102507,1720083032846,-277.08,0.00012209,2]
[331102508,1720083032855,-277.08,0.00012243,2]
[331102509,1720083032864,-150.0,0.00012247,2]
[331102510,1720083032875,-155.0,0.00012273,2]
[331102511,1720083032885,-155.0,0.00012273,2]
[331102512,1720083032894,-277.08,0.00012276,2]
[331102513,1720083032904,-300.0,0.000123,2]
[331102514,1720083032916,-320.67,0.00012301,2]
[331102515,1720083032925,-211.0618099,0.00012302,2]
[331102516,1720083032937,-88.9281901,0.00012302,2]
[331102517,1720083032947,-150.99,0.00012302,2]
[331102518,1720083032956,-277.08,0.0001231,2]
[331102519,1720083032966,-277.08,0.00012343,2]
[331102520,1720083032976,-70.99711671,0.00012345,2]
[331102521,1720083032988,-79.99288329,0.00012345,2]
[331102522,1720083032997,-277.08,0.00012376,2]
[331102523,1720083033007,-3028.31,0.00012379,2]
[331102524,1720083033017,-277.08,0.0001241,2]
[331102525,1720083033026,-12145.90955661,0.00012413,2]
[331102526,1720083033039,-1877.77913371,0.00012413,2]
[331102528,1720083033050,-2624.64023062,0.00012413,2]
[331102530,1720083033061,-453.51,0.00012413,2]
[331102531,1720083033073,-1836.15198019,0.00012413,2]
[331102532,1720083033085,-7166.71909887,0.00012413,2]
[331102533,1720083033094,-277.08,0.00012443,2]
[331102534,1720083033104,-277.08,0.00012477,2]
[331102535,1720083033113,-1207.69,0.0001248,2]
[331102536,1720083033123,-819.63,0.00012481,2]
[331102537,1720083033132,-277.08,0.0001251,2]
[331102538,1720083033141,-499.99,0.00012513,2]
[331102539,1720083033150,-277.08,0.00012543,2]
[331102540,1720083033159,-277.08,0.00012577,2]
[331102541,1720083033169,-178.9,0.00012595,2]
[331102542,1720083033180,-150.0,0.000126,2]
[331102543,1720083033189,-277.08,0.0001261,2]
[331102544,1720083033199,-195.74,0.00012622,2]
[331102545,1720083033208,-277.08,0.00012644,2]
[331102546,1720083033218,-156.9,0.00012656,2]
[331102547,1720083033227,-156.9,0.0001266,2]
[331102548,1720083033236,-156.9,0.00012663,2]
[331102549,1720083033246,-156.9,0.00012667,2]
[331102550,1720083033255,-156.9,0.00012671,2]
[331102551,1720083033264,-156.9,0.00012675,2]
[331102552,1720083033274,-277.08,0.00012677,2]
[331102553,1720083033283,-156.9,0.00012678,2]
[331102554,1720083033294,-156.9,0.00012682,2]
[331102555,1720083033304,-156.9,0.00012686,2]
[331102556,1720083033313,-156.9,0.0001269,2]
[331102557,1720083033322,-156.9,0.00012693,2]
[331102558,1720083033333,-156.9,0.00012697,2]
[331102559,1720083033343,-156.9,0.00012701,2]
[331102560,1720083033352,-156.9,0.00012704,2]
[331102561,1720083033363,-156.9,0.00012708,2]
[331102562,1720083033372,-277.08,0.0001271,2]
[331102563,1720083033381,-156.9,0.00012712,2]
[331102564,1720083033391,-156.9,0.00012716,2]
[331102565,1720083033400,-156.9,0.00012719,2]
[331102566,1720083033410,-1000.0,0.00012738,2]
[331102567,1720083033419,-277.08,0.00012744,2]
[331102568,1720083033430,-1000.0,0.00012777,2]
[331102569,1720083033439,-277.08,0.00012777,2]
[331102570,1720083033448,-277.08,0.0001281,2]
[331102571,1720083033464,-1316.0,0.00012863,2]
[331102572,1720083033478,-1000.0,0.00012879,2]
[331102573,1720083033488,-27142.99559255,0.00012954,2]
[331102574,1720083033497,-1000.0,0.00013064,2]
[331102575,1720083033507,-1000.0,0.00013101,2]
[331102576,1720083033517,-285.49,0.00013102,2]
[331102577,1720083033527,-234.63576365,0.00013128,2]
[331102578,1720083033536,-720.09204165,0.00013128,2]
[331102579,1720083033548,-258.7944,0.00013362,2]
[331102580,1720083033557,-1876.541,0.00013372,2]
[331102581,1720083033568,-1000.0,0.00013439,2]
[331102582,1720083033577,-9236.68269313,0.00013461,2]
[331102583,1720083033587,-218.16420677,0.00013472,2]
[331102584,1720083033597,-420.0,0.00013499,2]
[331102585,1720083033606,-1000.0,0.000135,4]
[331102586,1720083033616,-169.02,0.0001351,2]
[331102587,1720083033626,-599.27979208,0.00013516,2]
[331102588,1720083033635,-672.56693239,0.00013516,2]
[331102589,1720083033646,-1000.0,0.00013531,2]
[331102590,1720083033655,-227.14852012,0.00013543,2]
[331102591,1720083033665,-227.14852012,0.00013543,2]
[331102592,1720083033677,-233.13387345,0.00013574,2]
[331102593,1720083033687,-746.13,0.00013587,2]
[331102594,1720083033696,-2314.8852,0.00013599,2]
[331102595,1720083033706,-2100.0,0.000136,4]
[331102596,1720083033715,-6554.4243,0.0001369,2]
[331102597,1720083033725,-411.78,0.00013699,2]
[331102598,1720083033735,-2751.0,0.00013699,2]
[331102599,1720083033744,-1660.56,0.00013699,2]
[331102600,1720083033754,-10000.0,0.00013699,2]
[331102601,1720083033763,-500.0,0.00013699,2]
[331102602,1720083033774,-2644.97,0.00013699,2]
[331102603,1720083033783,-2899.64,0.000137,2]
[331102604,1720083033794,-3376.78224415,0.000137,2]
[331102605,1720083033804,-3200.0,0.000137,5]
[331102606,1720083033813,-315.10956942,0.000137,2]
[331102607,1720083033822,-2500.0,0.000137,2]
[331102608,1720083033833,-150.0,0.00013727,2]
[331102609,1720083033845,-150.0,0.00013741,2]
[331102610,1720083033854,-150.0,0.00013743,2]
[331102611,1720083033863,-150.0,0.00013744,2]
[331102612,1720083033873,-150.0,0.00013746,2]
[331102613,1720083033882,-304.40157014,0.00013748,2]
[331102614,1720083033891,-150.0,0.00013756,2]
[331102615,1720083033901,-150.0,0.00013765,2]
[331102616,1720083033911,-150.0,0.00013765,2]
[331102617,1720083033921,-150.0,0.00013773,2]
[331102618,1720083033931,-150.0,0.00013774,2]
[331102619,1720083033940,-232.11,0.0001378,3]
[331102620,1720083033950,-696.33,0.0001378,3]
[331102621,1720083033959,-150.0,0.00013785,2]
[331102622,1720083033968,-20292.63104566,0.0001379,2]
[331102623,1720083033978,-150.0,0.00013797,2]
[331102624,1720083033987,-356.93123625,0.00013799,5]
[331102625,1720083033996,-5282.45471184,0.00013799,2]
[331102626,1720083034007,-100000.0,0.000138,2]
[331102627,1720083034017,-8084.62003666,0.000138,2]
[331102628,1720083034030,-347.60875311,0.000138,2]
[331102629,1720083034043,-1094.6407865,0.000138,2]
[331102630,1720083034055,-1562.75,0.000138,2]
[331102631,1720083034373,-603.03497768,0.000138,2]
[331102632,1720083034402,153.99,0.0001398,30]
[331102633,1720083034423,-336.000007,0.000138,2]
[331102634,1720083034434,-3013.29028,0.000138,2]
[331102635,1720083034445,-2211.42628299,0.000138,2]
[331102636,1720083034735,-380.62637766,0.000138,2]
[331102648,1720083038034,-34233.58916488,0.000138,2]
[331102649,1720083038047,-573.69,0.000138,2]
[331102650,1720083038059,-401.05803429,0.000138,2]
[331102651,1720083038125,-3090.6189,0.000138,2]
[331102652,1720083038137,-52189.42879603,0.000138,2]
[331102653,1720083038184,-1703.96332527,0.00013699,2]
[331102654,1720083038196,-1127.41667473,0.00013699,2]
[331102655,1720083038206,-147367.1328032,0.000138,2]
[331102656,1720083038216,-500.0,0.000138,2]
[331102657,1720083038226,-1000.0,0.000138,2]
[331102658,1720083038236,-150.0,0.000138,2]
[331102659,1720083038246,-4200.0,0.000138,5]
[331102660,1720083038256,-385.52794989,0.000138,2]
[331102661,1720083038265,-412.34936408,0.00013802,2]
[331102662,1720083038275,-150.0,0.00013804,2]
[331102663,1720083038285,-150.0,0.00013813,2]
[331102664,1720083038302,-150.0,0.00013822,2]
[331102665,1720083038311,-150.0,0.00013822,2]
[331102666,1720083038321,-150.0,0.00013826,2]
[331102667,1720083038330,-150.0,0.0001383,2]
[331102668,1720083038340,-150.0,0.00013832,2]
[331102669,1720083038349,-150.0,0.00013835,2]
[331102670,1720083038359,-150.0,0.00013839,2]
[331102672,1720083038369,-150.0,0.00013839,2]
[331102674,1720083038379,-150.0,0.00013858,2]
[331102676,1720083038388,-768.37836,0.0001386,2]
[331102677,1720083038397,-159.45896,0.0001386,2]
[331102678,1720083038407,-202.1018019,0.0001386,2]
[331102679,1720083038417,-150.0,0.00013868,2]
[331102681,1720083038426,-109301.04953302,0.0001387,2]
[331102682,1720083038436,-150.0,0.00013871,2]
[331102685,1720083038446,-150.0,0.00013872,2]
[331102687,1720083038459,-150.0,0.00013873,2]
[331102689,1720083038469,-150.0,0.00013877,2]
[331102691,1720083038479,-150.0,0.00013878,2]
[331102693,1720083038489,-150.0,0.00013882,2]
[331102695,1720083038499,-150.0,0.00013884,2]
[331102697,1720083038509,-150.0,0.00013885,2]
[331102699,1720083038518,-292.43867639,0.00013889,2]
[331102702,1720083038528,-221.65705849,0.00013889,2]
[331102705,1720083038538,-155.12709736,0.00013889,2]
[331102707,1720083038550,-220.39,0.0001389,3]
[331102709,1720083038561,-11457.99526428,0.00013899,2]
[331102711,1720083038571,-159.72076583,0.00013899,2]
[331102713,1720083038580,-346.5178534,0.00013899,2]
[331102715,1720083038590,-13228.5619,0.000139,2]
[331102717,1720083038600,-179.81673788,0.000139,2]
[331102719,1720083038610,-5300.0,0.000139,5]
[331102721,1720083038620,-550.67797868,0.000139,2]
[331102723,1720083038630,-156.21854592,0.000139,2]
[331102725,1720083038640,-191.46738629,0.000139,2]
[331102727,1720083038650,-170.10454582,0.000139,2]
[331102730,1720083038661,-3952.05696686,0.000139,2]
[331102732,1720083038674,-150.0,0.00013902,2]